Cogmind - Beta 13 @@@ ROGUE MODE // 2024.03.04 @ 21:44:38 // Winter2019/RPGLIKE Player: surfboardsofcanada Result: Destroyed by G-50 Soldier with Heavy Laser Performance ------------- Evolutions (5) 2500 Regions Visited (11) 2200 Robots Destroyed (53) 265 Value Destroyed (2283) 2283 Prototype IDs (10) 200 Alien Tech Used (0) 0 Bonus (2163) 2163 TOTAL SCORE: 9611 Bonus ------- Follower Combat Kills 2066 Aligned with FarCom 300 Friendly Fire -203 Cogmind --------- Core Integrity 0/1200 Matter 492/500 Energy 576/630 System Corruption 4% Temperature Warm (137) Movement Hovering (105) Ox1 Location -5/Extension Parts ------- > --- POWER (2) -------- Neutrino Core Neutrino Core > --- PROPULSION (4) --- Improved Gravmag System Cooled Aerolev Unit Combat Airjet Gyrokinetic Inverter > --- UTILITY (5) ------ Advanced Cooling System Improved Particle Charger Weapon Cycler Improved Medium Armor Plating Advanced System Shield > --- WEAPON (5) ------- Wave Gun Advanced Plasma Cannon Enhanced Coil Gun Enhanced Coil Gun > --- INVENTORY (4) ---- Heavy Shock Bomb Launcher Signal Generator Peak State ------------ > --- POWER ------------ Neutrino Core Neutrino Core > --- PROPULSION ------- Improved Gravmag System Cooled Aerolev Unit Combat Airjet Gyrokinetic Inverter > --- UTILITY ---------- Advanced Cooling System Improved Particle Charger Weapon Cycler Improved Medium Armor Plating Advanced System Shield > --- WEAPON ----------- Heavy Laser Wave Gun Advanced Plasma Cannon Enhanced Coil Gun Enhanced Coil Gun > --- INVENTORY -------- Heavy Shock Bomb Launcher Signal Generator [Rating: 90] Favorites ----------- Power Micro Nuclear Core Engine Ion Engine Power Core Micro Nuclear Core Propulsion Gravmag System Leg Aluminum Leg Hover Unit Gravmag System Utility Targeting Computer Device Weapon Cycler Processor Targeting Computer Hackware System Shield Protection Improved Medium Armor Plating Weapon Enhanced Coil Gun Energy Gun Shock Rifle Energy Cannon Advanced Plasma Cannon Ballistic Gun Enhanced Coil Gun Special Weapon Mining Laser Slashing Weapon Mining Claw Build | -11 -10 -10 -10 -9 -8 -7 -7 -7 -6 -5 -5 ------- Run | Yrd Mat Min Exi Min Mat Fac Low Low Fac Fac Ext Slots Evolved 12 | 3 . . 3 . . 3 1 . 1 . 1 Power 1 | . . . . . . 1 . . . . . Propulsion 3 | 1 . . 1 . . 1 . . . . . Utility 4 | 1 . . 1 . . 1 . . 1 . . Weapon 4 | 1 . . 1 . . . 1 . . . 1 Parts Attached 82 | 5 3 . 15 2 1 7 1 2 21 15 10 Power 10 | 1 1 . 1 . . 1 . . 4 1 1 Engine 1 | 1 . . . . . . . . . . . Core 9 | . 1 . 1 . . 1 . . 4 1 1 Reactor . | . . . . . . . . . . . . Propulsion 16 | 2 . . 3 . . 2 . . 5 4 . Treads . | . . . . . . . . . . . . Leg 2 | 2 . . . . . . . . . . . Wheel . | . . . . . . . . . . . . Hover 14 | . . . 3 . . 2 . . 5 4 . Flight . | . . . . . . . . . . . . Utility 27 | . . . 3 1 1 3 . 1 7 5 6 Device 14 | . . . . 1 . 1 . 1 4 4 3 Storage . | . . . . . . . . . . . . Processor 4 | . . . 3 . . . . . . 1 . Hackware 3 | . . . . . . 1 . . 1 . 1 Protection 6 | . . . . . 1 1 . . 2 . 2 Artifact . | . . . . . . . . . . . . Weapon 29 | 2 2 . 8 1 . 1 1 1 5 5 3 Energy Gun 8 | 1 . . 3 . . . . . 2 . 2 Energy Cannon 1 | . . . . . . . . . . 1 . Ballistic Gun 15 | 1 1 . 1 1 . 1 1 1 3 4 1 Ballistic Cannon . | . . . . . . . . . . . . Launcher . | . . . . . . . . . . . . Special Weapon 4 | . . . 4 . . . . . . . . Impact Weapon . | . . . . . . . . . . . . Slashing Weapon 1 | . 1 . . . . . . . . . . Piercing Weapon . | . . . . . . . . . . . . Special Melee Weapon . | . . . . . . . . . . . . Unidentified Prototypes 7 | . . . 2 1 . . . . 3 1 . Parts Lost 2 | . . . . . . . . . 1 1 . Power . | . . . . . . . . . . . . Propulsion . | . . . . . . . . . . . . Utility 2 | . . . . . . . . . 1 1 . Weapon . | . . . . . . . . . . . . Highest Loss Streak 1 | . . . . . . . . . 1 1 . To Critical Strikes . | . . . . . . . . . . . . Average Slot Usage (%) 88 | . 70 71 74 96 97 100 94 99 86 96 95 Core 12 | . 7 14 12 10 10 14 14 14 12 13 12 Leg 6 | . 28 28 17 . . . . . . . . Hover 20 | . . . 10 30 30 30 28 28 25 25 25 Device 6 | . . . . . . 6 7 6 6 9 19 Processor 7 | . . . 8 26 20 11 7 7 6 7 . Hackware 3 | . . . . . . 3 7 7 . 6 6 Protection 3 | . . . . . 7 7 7 7 6 5 3 Energy Gun 9 | . 14 14 13 16 10 7 7 7 3 6 7 Energy Cannon 1 | . . . . . . . . . . 2 6 Ballistic Gun 13 | . 7 14 6 13 20 15 15 21 22 17 12 Special Weapon 1 | . . . 5 . . . . . . . . Naked Turns . | . . . . . . . . . . . . Heaviest Build 70 | 9 9 9 17 18 25 32 35 43 44 52 70 Greatest Support 42 | 20 20 20 27 27 27 36 36 36 42 42 42 Greatest Overweight (x) 2 | 2 . . 1 . . . . 1 1 1 1 Average Overweight (x) . | . . . . . . . . . . 1 1 Largest Inventory Capacity 4 | 3 3 3 4 4 4 4 4 4 4 4 4 Average Capacity 3 | 3 3 3 3 4 4 4 4 4 4 4 4 Most Carried 4 | 1 3 2 4 4 4 4 4 3 4 4 4 Average Carried 2 | . 1 2 2 3 3 3 3 3 3 3 1 Final Capacity 4 | 3 3 3 4 4 4 4 4 4 4 4 4 Final Carried 4 | 1 2 2 4 4 4 4 3 3 4 2 2 Class Distribution -------------------- 27% | Scavenger-Gunner 24% | Mutant 18% | Gunner 15% | Scavenger-Tank 8% | Scavenger-Mutant 5% | Skirmisher Dominant Class ---------------- Mutant | -10/Materials Mutant | -10/Mines Mutant | -10/Exiles Scavenger-Gunner | -9/Mines Scavenger-Gunner | -8/Materials Scavenger-Gunner | -7/Factory Scavenger-Tank | -7/Lower Caves Scavenger-Tank | -7/Lower Caves Scavenger-Gunner | -6/Factory Gunner | -5/Factory Scavenger-Gunner | -5/Extension Resources | -11 -10 -10 -10 -9 -8 -7 -7 -7 -6 -5 -5 ----------- Run | Yrd Mat Min Exi Min Mat Fac Low Low Fac Fac Ext Matter Collected 2009 | 250 20 34 160 168 . 85 130 92 75 607 388 Remotely . | . . . . . . . . . . . . Salvage Created 2284 | . 125 37 . 134 . 85 60 . 32 287 1524 Parts 98 | . 6 7 . 14 . . 11 . 8 12 40 Haulers Intercepted . | . . . . . . . . . . . . Recyclers Shooed 3 | . . . . . . . . . . . 3 Parts Field Recycled . | . . . . . . . . . . . . Retrieved Matter . | . . . . . . . . . . . . Parts Self-Destructed 11 | . . . . . . . 11 . . . . Prevented 2 | . . . . . . . 2 . . . . Kills | -11 -10 -10 -10 -9 -8 -7 -7 -7 -6 -5 -5 ------- Run | Yrd Mat Min Exi Min Mat Fac Low Low Fac Fac Ext Combat Hostiles Destroyed 50 | . 3 3 . 7 . 1 6 . 4 7 19 Melee 3 | . 3 . . . . . . . . . . Guns 32 | . . 1 . 6 . 1 4 . 4 2 14 Cannons 8 | . . . . . . . . . . 4 4 AOE 5 | . . 2 . 1 . . 2 . . . . Classes Destroyed 10 | . 1 2 . . . 1 1 . 2 1 2 Worker 1 | . . 1 . . . . . . . . . Watcher 1 | . . . . . . . . . . . 1 Swarmer 13 | . . 3 . 4 . . 4 . 2 . . Grunt 17 | . 3 . . 3 . . . . . 1 10 Brawler 1 | . . . . . . . . . 1 . . Duelist 1 | . . . . . . . . . . . 1 Sentry 9 | . . . . . . 1 1 . . 1 6 Hunter 4 | . . . . . . . 1 . . 2 1 Programmer 3 | . . . . . . . . . 1 2 . Heavy 1 | . . . . . . . . . . 1 . Thug 1 | . . . . . . . . . . . 1 Butcher 1 | . . . . . . . . . . . 1 Best Kill Streak 7 | . 1 4 . 4 . 1 3 . 3 2 7 Combat Bots Only 7 | . 1 3 . 4 . 1 3 . 3 2 7 Max Kills in Single Turn 3 | . 1 3 . 1 . 1 1 . 1 1 3 Gunslinging . | . . . . . . . . . . . . Exploded 2 | . . 2 . 1 . . 1 . . . . Melee 1 | . 1 . . . . . . . . . . Uniques/NPCs Destroyed . | . . . . . . . . . . . . Combat | -11 -10 -10 -10 -9 -8 -7 -7 -7 -6 -5 -5 -------- Run | Yrd Mat Min Exi Min Mat Fac Low Low Fac Fac Ext Hostile Shots Fired 336 | . 41 11 8 13 . 24 40 . 13 62 124 Missed 103 | . 10 1 2 8 . 11 18 . 8 11 34 Damage Taken 4443 | . 413 110 141 33 . 120 330 . 98 1421 1777 Core 3329 | . 345 86 126 24 . 90 231 . 80 1052 1295 Absorbed by Shields 35 | . . . . . . . . . . . 35 Redirected to Core 2670 | . 225 70 50 24 . 62 176 . 67 819 1177 Ignored by Resistances 710 | . . . 9 6 . 22 46 . 6 137 484 Core Remaining (%) 97 | 100 . . . 100 100 . . 85 100 . . Volleys Fired 106 | . . 8 10 8 . 2 15 . 6 23 34 Largest 4 | . . 2 1 3 . 3 3 . 4 4 4 Hottest 243 | . . 60 100 128 . 106 106 . 134 243 243 Shots Fired 293 | . . 16 10 24 . 6 45 . 25 60 107 Gun 238 | . . 16 . 24 . 6 45 . 25 49 73 Cannon 45 | . . . . . . . . . . 11 34 Launcher . | . . . . . . . . . . . . Special 10 | . . . 10 . . . . . . . . Kinetic 159 | . . 8 . 12 . 4 30 . 20 26 59 Thermal 87 | . . . 5 . . . . . . 34 48 Explosive . | . . . . . . . . . . . . Electromagnetic 42 | . . 8 . 12 . 2 15 . 5 . . Robot Hit Streak 34 | . . 3 6 11 . 21 25 . 22 21 34 Robot Miss Streak 6 | . . 6 . 2 . . 4 . 2 1 3 Penetration Max 2 | . . . . 1 . . . . . 1 2 Secondary Targets 4 | . . . . 1 . . 2 . . 1 . Max Gunslinging Chain 1 | . . . . 1 . . 1 . . 1 . Shots Hit Robots 217 | . 9 6 5 14 . 6 36 . 16 54 71 Core Hits 115 | . 4 6 . 10 . 5 20 . 13 17 40 Critical Kills 4 | . . . . 1 . . . . . . 3 Critical Parts Destroyed 9 | . . . . . . . . . 1 2 6 Critical Strikes 18 | . . . . 2 . . . . 1 6 9 Burn 4 | . . . . . . . . . . 4 . Meltdown 1 | . . . . . . . . . . . 1 Destroy 12 | . . . . 1 . . . . 1 2 8 Corrupt 1 | . . . . 1 . . . . . . . Melee Attacks 16 | . 16 . . . . . . . . . . Impact . | . . . . . . . . . . . . Slashing 16 | . 16 . . . . . . . . . . Piercing . | . . . . . . . . . . . . Sneak Attacks . | . . . . . . . . . . . . Combat Hostiles . | . . . . . . . . . . . . Follow-up Attacks . | . . . . . . . . . . . . Damage Inflicted 6633 | . 188 203 . 363 . 171 636 . 330 1291 3451 Guns 4549 | . . 69 . 308 . 117 540 . 330 898 2287 Cannons 1493 | . . . . . . . . . . 386 1107 Explosions 339 | . . 134 . 55 . 54 96 . . . . Melee 188 | . 188 . . . . . . . . . . Ramming 64 | . . . . . . . . . . 7 57 Kinetic 3284 | . . 22 . 147 . 89 321 . 255 512 1938 Thermal 2567 | . . 134 . 55 . 54 96 . . 772 1456 Explosive . | . . . . . . . . . . . . Electromagnetic 530 | . . 47 . 161 . 28 219 . 75 . . Impact . | . . . . . . . . . . . . Slashing 188 | . 188 . . . . . . . . . . Piercing . | . . . . . . . . . . . . Highest Corruption 5 | . . . . . . . . . 5 4 4 Average Corruption 3 | . . . . . . . . . 5 2 4 Corruption Purged . | . . . . . . . . . . . . Corruption Blocked . | . . . . . . . . . . . . Effects 39 | . . . . . . . . . 11 10 18 Message Errors 11 | . . . . . . . . . 7 . 4 Matter Fused 8 | . . . . . . . . . 2 1 5 Heat Flow Errors 2 | . . . . . . . . . . 2 . Energy Discharges 7 | . . . . . . . . . 1 2 4 Parts Rejected 2 | . . . . . . . . . . 2 . Data Loss (minor) 4 | . . . . . . . . . . 1 3 Data Loss (major) 2 | . . . . . . . . . . 1 1 Misfires 1 | . . . . . . . . . 1 . . Alerts 1 | . . . . . . . . . . . 1 Weapon Failures 1 | . . . . . . . . . . 1 . Overload Shots . | . . . . . . . . . . . . Overflow Damage 23 | . . . . . . . . . . . 23 Projectiles 11 | . . . . . . . . . . . 11 Explosions . | . . . . . . . . . . . . Melee 12 | . . . . . . . . . . . 12 Knockbacks . | . . . . . . . . . . . . Impact . | . . . . . . . . . . . . Kinetic . | . . . . . . . . . . . . Secondary . | . . . . . . . . . . . . Self-Inflicted Damage 100 | . . 33 . . . . 36 . . 3 28 Shots 2 | . . 1 . . . . 1 . . . . Rammed 4 | . . . . . . . . . . 1 3 Targets Rammed 4 | . . . . . . . . . . 1 3 Kicked . | . . . . . . . . . . . . Crushed . | . . . . . . . . . . . . Highest Temperature 643 | . 9 60 1 180 . 111 344 . 390 643 440 Average Temperature 140 | . 8 34 1 60 . 76 110 . 161 204 136 Received Heat Transfer 1159 | . 270 . 24 6 . 30 30 . . 36 763 Effects 28 | . . . . . . . 3 . 2 16 7 Shutdowns 11 | . . . . . . . 2 . 2 6 1 Energy Bleed 1 | . . . . . . . . . . 1 . Interference 7 | . . . . . . . . . . 3 4 Matter Decay 3 | . . . . . . . 1 . . 2 . Short Circuit 1 | . . . . . . . . . . 1 . Damage (minor) 3 | . . . . . . . . . . 3 . Damage (major) 2 | . . . . . . . . . . . 2 Siege Activations . | . . . . . . . . . . . . Robots Corrupted . | . . . . . . . . . . . . Combat Hostiles . | . . . . . . . . . . . . Parts Fried 1 | . . . . . . . 1 . . . . Impact Corruptions 1 | . . . . . . . . . . . 1 Robots Melted 2 | . . . . . . . . . . 1 1 Combat Hostiles 2 | . . . . . . . . . . 1 1 Parts Melted 15 | . . . . . . . . . . 8 7 Heat Transferred 4307 | . . 100 . 150 . 50 100 . . 2000 1907 Parts Sabotaged . | . . . . . . . . . . . . Parts Stolen . | . . . . . . . . . . . . Parts Stripped . | . . . . . . . . . . . . Power Chain Reactions 5 | . . 1 . 1 . 1 2 . . . . Alert | -11 -10 -10 -10 -9 -8 -7 -7 -7 -6 -5 -5 ------- Run | Yrd Mat Min Exi Min Mat Fac Low Low Fac Fac Ext Peak Influence 414 | . 110 124 . 165 129 98 . . 94 140 414 Initial 68 | . . 42 . . 64 58 . . 12 . 68 Average 114 | . 58 86 . 69 89 50 . . 45 44 251 Maximum Alert Level 2 | . . . . . . . . . . . 2 Low Security (%) 75 | 100 100 100 . 100 100 100 . . 100 100 19 Level 1 22 | . . . . . . . . . . . 72 Level 2 2 | . . . . . . . . . . . 8 Level 3 . | . . . . . . . . . . . . Level 4 . | . . . . . . . . . . . . Level 5 . | . . . . . . . . . . . . High Security . | . . . . . . . . . . . . Max Security . | . . . . . . . . . . . . Squads Dispatched 8 | . 1 . . . . 1 . . 1 4 1 Investigation 1 | . . . . . . . . . . 1 . Extermination 3 | . . . . . . 1 . . 1 1 . Reinforcement 4 | . 1 . . . . . . . . 2 1 Assault . | . . . . . . . . . . . . Garrison . | . . . . . . . . . . . . Intercept . | . . . . . . . . . . . . Searches Triggered . | . . . . . . . . . . . . Construction Impeded 1 | . . . . . . . . . . . 1 Haulers Reinforced . | . . . . . . . . . . . . Active Scanning Responses . | . . . . . . . . . . . . Cargo Convoy Interrupts . | . . . . . . . . . . . . Stealth | -11 -10 -10 -10 -9 -8 -7 -7 -7 -6 -5 -5 --------- Run | Yrd Mat Min Exi Min Mat Fac Low Low Fac Fac Ext Distress Signals 5 | . . . . . 1 . . . . 2 2 Communications Jammed . | . . . . . . . . . . . . Distress Signals . | . . . . . . . . . . . . Times Spotted 110 | . 5 3 27 6 5 2 13 . 4 10 35 Peak Tracking Total 9 | . 2 3 9 4 6 1 4 . 3 2 8 Tactical Retreats 8 | . . . 1 . 1 . 2 . . . 4 Traps | -11 -10 -10 -10 -9 -8 -7 -7 -7 -6 -5 -5 ------- Run | Yrd Mat Min Exi Min Mat Fac Low Low Fac Fac Ext Traps Triggered 6 | . . . . . . 1 . . 1 1 3 Indirectly . | . . . . . . . . . . . . Trap Hack Attempts . | . . . . . . . . . . . . Triggered . | . . . . . . . . . . . . Disarmed . | . . . . . . . . . . . . Reprogrammed . | . . . . . . . . . . . . Reused . | . . . . . . . . . . . . Traps Extracted . | . . . . . . . . . . . . Installed . | . . . . . . . . . . . . Triggered 2 | . . . . . . . 2 . . . . Machines | -11 -10 -10 -10 -9 -8 -7 -7 -7 -6 -5 -5 ---------- Run | Yrd Mat Min Exi Min Mat Fac Low Low Fac Fac Ext Machines Disabled 3 | . . . 3 . . . . . . . . Max in Single Turn . | . . . . . . . . . . . . Machines Repaired . | . . . . . . . . . . . . Machines Dismantled . | . . . . . . . . . . . . Machines Sabotaged . | . . . . . . . . . . . . Overloaded Fab Kills . | . . . . . . . . . . . . Hacking | -11 -10 -10 -10 -9 -8 -7 -7 -7 -6 -5 -5 --------- Run | Yrd Mat Min Exi Min Mat Fac Low Low Fac Fac Ext Machines Accessed 18 | . 1 . 4 . 1 3 1 . . 2 6 Terminals 13 | . 1 . . . 1 3 1 . . 1 6 Fabricators . | . . . . . . . . . . . . Repair Stations . | . . . . . . . . . . . . Recycling Units 1 | . . . . . . . . . . 1 . Scanalyzers . | . . . . . . . . . . . . Garrison Access . | . . . . . . . . . . . . Total Hacks 82 | . 2 . 49 . 3 8 3 . . 7 10 Successful 69 | . 1 . 49 . 1 6 3 . . 3 6 Failed 13 | . 1 . . . 2 2 . . . 4 4 Catastrophic 1 | . . . . . . . . . . . 1 Database Lockouts . | . . . . . . . . . . . . Manual 1 | . . . 1 . . . . . . . . Terminals 27 | . 2 . . . 3 8 3 . . 1 10 Fabricators . | . . . . . . . . . . . . Repair Stations . | . . . . . . . . . . . . Recycling Units 6 | . . . . . . . . . . 6 . Scanalyzers . | . . . . . . . . . . . . Garrison Access . | . . . . . . . . . . . . Terminal Hacks 67 | . 1 . 49 . 1 6 3 . . 1 6 Record 56 | . . . 49 . . 3 3 . . . 1 Open Door 4 | . . . . . . . . . . 1 3 Branch Access Points 1 | . . . . . . 1 . . . . . Alert Level 1 | . . . . . . 1 . . . . . Unreport Threat 1 | . . . . . . 1 . . . . . Zone Layout 4 | . 1 . . . 1 . . . . . 2 Fabricator Hacks . | . . . . . . . . . . . . Repair Station Hacks . | . . . . . . . . . . . . Recycling Unit Hacks 2 | . . . . . . . . . . 2 . Recycle Component 1 | . . . . . . . . . . 1 . Retrieve Matter 1 | . . . . . . . . . . 1 . Scanalyzer . | . . . . . . . . . . . . Garrison Access Hacks . | . . . . . . . . . . . . Unauthorized Hacks . | . . . . . . . . . . . . Terminals . | . . . . . . . . . . . . Fabricators . | . . . . . . . . . . . . Repair Stations . | . . . . . . . . . . . . Recycling Units . | . . . . . . . . . . . . Scanalyzers . | . . . . . . . . . . . . Garrison Access . | . . . . . . . . . . . . Data Cores Recovered . | . . . . . . . . . . . . Used . | . . . . . . . . . . . . Hacking Detections 6 | . . . . . . 1 1 . . 1 3 Full Trace Events 2 | . . . . . . . 1 . . 1 . Feedback Events . | . . . . . . . . . . . . Feedback Blocked . | . . . . . . . . . . . . Robot Schematics Acquired . | . . . . . . . . . . . . Robots Built . | . . . . . . . . . . . . Authchips . | . . . . . . . . . . . . Time . | . . . . . . . . . . . . Total Robot Build Rating . | . . . . . . . . . . . . Part Schematics Acquired . | . . . . . . . . . . . . Parts Built . | . . . . . . . . . . . . Authchips . | . . . . . . . . . . . . Time . | . . . . . . . . . . . . Total Part Build Rating . | . . . . . . . . . . . . Parts Repaired . | . . . . . . . . . . . . Time . | . . . . . . . . . . . . Parts Recycled 1 | . . . . . . . . . . 1 . Recycled Matter . | . . . . . . . . . . . . Retrieved Matter . | . . . . . . . . . . . . Retrieved Components . | . . . . . . . . . . . . Parts Scanalyzed . | . . . . . . . . . . . . Part Schematics Acquired . | . . . . . . . . . . . . Parts Damaged . | . . . . . . . . . . . . Bothacking | -11 -10 -10 -10 -9 -8 -7 -7 -7 -6 -5 -5 ------------ Run | Yrd Mat Min Exi Min Mat Fac Low Low Fac Fac Ext Used RIF Installer . | . . . . . . . . . . . . Robots Hacked . | . . . . . . . . . . . . Non-combat . | . . . . . . . . . . . . Combat . | . . . . . . . . . . . . Robot Hacks Applied . | . . . . . . . . . . . . Relay Couplers Released . | . . . . . . . . . . . . Fabnet Peak Effective % . | . . . . . . . . . . . . Robots Rewired 11 | . . . . . . . . . . . 11 Allies Hacked . | . . . . . . . . . . . . Hacks Repelled . | . . . . . . . . . . . . Allies | -11 -10 -10 -10 -9 -8 -7 -7 -7 -6 -5 -5 -------- Run | Yrd Mat Min Exi Min Mat Fac Low Low Fac Fac Ext Total Allies 19 | . . . 5 . . . . . . . 14 Largest Group 5 | . . . 4 . . . . . . . 5 Highest-Rated Group 285 | . . . 56 . . . . . . . 285 Highest-Rated Ally 159 | . . . 21 . . . . . . . 159 Total Orders 4 | . . . . . . . . . . 4 . EXPLORE 4 | . . . . . . . . . . 4 . Ally Attacks 173 | . . . 141 . . . . . . . 32 Total Damage 7213 | . . . 6441 . . . . . . . 772 Kills 60 | . . . 55 . . . . . . . 5 Allies Corrupted . | . . . . . . . . . . . . Allies Melted . | . . . . . . . . . . . . Turrets Deployed 3 | . . . 3 . . . . . . . . Field Lobotomies 5 | . . . 5 . . . . . . . . Intel | -11 -10 -10 -10 -9 -8 -7 -7 -7 -6 -5 -5 ------- Run | Yrd Mat Min Exi Min Mat Fac Low Low Fac Fac Ext Robot Analysis Total . | . . . . . . . . . . . . Derelict Logs Recovered 4 | . . 1 . 1 . . 2 . . . . Drone Launches 5 | . . . . . . . . . . 5 . Drone Recoveries 1 | . . . . . . . . . . 1 . Exploration | -11 -10 -10 -10 -9 -8 -7 -7 -7 -6 -5 -5 ------------- Run | Yrd Mat Min Exi Min Mat Fac Low Low Fac Fac Ext Turns Passed 5680 | 56 197 79 1639 287 117 250 404 375 552 712 1012 Spaces Moved 5087 | 40 114 44 1012 403 121 430 750 413 742 362 656 Core 10 | 10 . . . . . . . . . . . Treads . | . . . . . . . . . . . . Legs 959 | 30 114 44 771 . . . . . . . . Wheels . | . . . . . . . . . . . . Hover 4118 | . . . 241 403 121 430 750 413 742 362 656 Flight . | . . . . . . . . . . . . Fastest Speed 43 | 50 120 120 52 52 52 45 45 45 43 98 105 Average Speed 78 | 121 120 120 104 52 52 47 45 89 59 105 105 Slowest Speed 150 | 150 120 120 120 52 52 52 45 105 116 111 105 Overloaded Moves . | . . . . . . . . . . . . Propulsion Burnouts . | . . . . . . . . . . . . Robots Hopped 8 | . . . 8 . . . . . . . . Cave-ins Triggered . | . . . . . . . . . . . . Time Travels 1 | . . . 1 . . . . . . . . Exploration Rate (%) 39 | 3 31 17 93 70 27 17 85 49 17 10 57 Regions Visited 11 Branch Regions 6 Pre-discovered Areas 2 | . . . 1 1 . . . . . . . Known Exits Taken 4 | . . . . 1 . 1 1 . . 1 . Unknown Exits Taken 7 | 1 1 1 1 . 1 . . 1 1 . . Scrap Searched 11 | . . . . 1 . . 2 8 . . . Spaces Dug 5 | . . . 5 . . . . . . . . Terrain Destroyed 67 | . . 7 5 7 . . 1 . . 13 34 Melee . | . . . . . . . . . . . . Projectile 55 | . . . 5 2 . . 1 . . 13 34 AOE 12 | . . 7 . 5 . . . . . . . Terrain Rammed . | . . . . . . . . . . . . Walls Destroyed . | . . . . . . . . . . . . Machines Disabled . | . . . . . . . . . . . . Actions | -11 -10 -10 -10 -9 -8 -7 -7 -7 -6 -5 -5 --------- Run | Yrd Mat Min Exi Min Mat Fac Low Low Fac Fac Ext Total 6524 | 45 143 54 1557 463 174 471 782 416 841 656 922 Wait 936 | . . . 497 32 51 21 8 . 37 219 71 Move 5060 | 39 113 43 995 402 120 429 749 412 741 361 656 Hop 8 | . . . 8 . . . . . . . . Pick Up 28 | 1 1 . 8 2 1 6 . . 2 3 4 Fast Attach 63 | 5 2 . 11 1 1 2 1 2 17 12 9 Attach 16 | . 1 . 3 1 . 4 . . 4 2 1 Detach 12 | . 2 . 4 1 . 1 . . 4 . . Swap 3 | . . . 1 . . 1 . . . 1 . Drop 63 | . 2 . 11 4 1 5 1 2 17 11 9 Fire 106 | . . 8 10 8 . 2 15 . 6 23 34 Melee 16 | . 16 . . . . . . . . . . Ram 4 | . . . . . . . . . . 1 3 Kick . | . . . . . . . . . . . . Crush . | . . . . . . . . . . . . Escape Stasis 26 | . . . . . . . . . . . 26 Rewire 80 | . . . . . . . . . . . 80 Trap . | . . . . . . . . . . . . Miscellaneous 103 | . 6 3 9 12 . . 8 . 13 23 29 Route ------- -11/Scrapyard -10/Materials -10/Mines (discovered 2 exits: [*Mat] / *Exi) -10/Exiles (discovered 2 exits: [*Min x2]) -9/Mines -8/Materials (discovered 2 exits: *Fac / Sto) -7/Factory (discovered 2 exits: *Low x2) -7/Lower Caves -7/Lower Caves -6/Factory -5/Factory -5/Extension History --------- Turn | Location | Event 1 | -11/Scrapyard | Upgraded with Propulsion slot (x1) 1 | -11/Scrapyard | Upgraded with Utility slot (x1) 1 | -11/Scrapyard | Upgraded with Weapon slot (x1) 4 | -11/Scrapyard | Discovered new exit (range 16) 57 | -11/Scrapyard | Entered Materials 154 | -10/Materials | Core integrity fell below 50% 225 | -10/Materials | Discovered new exit (range 11) 254 | -10/Materials | Entered Mines 276 | -10/Mines | Learned 2 Materials zone layouts 286 | -10/Mines | Discovered new exit (range 7) 317 | -10/Mines | Build established: Mutant 328 | -10/Mines | Deemed a non-threat by the Exiles lab entrance 328 | -10/Mines | Discovered new exit (range 5) 333 | -10/Mines | Entered Exiles 353 | -10/Exiles | Discovered new exit (range 14) 368 | -10/Exiles | Met 8R-AWN 390 | -10/Exiles | Met EX-HEX 443 | -10/Exiles | Met EX-DEC 477 | -10/Exiles | Learned location of Zion (-6) 531 | -10/Exiles | Discovered new exit (range 14) 642 | -10/Exiles | Visited The Gauntlet 823 | -10/Exiles | Met EX-BIN 851 | -10/Exiles | Reached level 2 851 | -10/Exiles | Aligned with FarCom system 852 | -10/Exiles | Given EX-Vault access code 965 | -10/Exiles | Opened EX-Vault 971 | -10/Exiles | Found Deploy-a-Sentry 975 | -10/Exiles | Found Deploy-a-Sentry 1002 | -10/Exiles | Warned to stay clear of 0b10 Research branches 1016 | -10/Exiles | Exiles lab attacked by MAIN.C 1029 | -10/Exiles | Found Prototype Device 1029 | -10/Exiles | Identified Chronowheel 1029 | -10/Exiles | Activated Chronowheel 1029 | -10/Exiles | Spacetime reconverged on an earlier point 1032 | -10/Exiles | Found Deploy-a-Sentry 1037 | -10/Exiles | Found Prototype Special Weapon 1037 | -10/Exiles | Identified Field Lobotomy Kit 1105 | -10/Exiles | DAS Turret deployed 1110 | -10/Exiles | DAS Turret deployed 1115 | -10/Exiles | DAS Turret deployed 1179 | -10/Exiles | Reached level 3 1194 | -10/Exiles | Reached level 4 1351 | -10/Exiles | Reached level 5 1456 | -10/Exiles | Reached level 6 1470 | -10/Exiles | Upgraded with Propulsion slot (x1) 1470 | -10/Exiles | Upgraded with Utility slot (x1) 1470 | -10/Exiles | Upgraded with Weapon slot (x1) 1472 | -10/Exiles | Assimilated H-55 Commando with FLK Orb 1476 | -10/Exiles | Assimilated H-55 Commando with FLK Orb 1479 | -10/Exiles | Assimilated B-36 Bruiser with FLK Orb 1484 | -10/Exiles | Assimilated H-55 Commando with FLK Orb 1487 | -10/Exiles | Assimilated G-34 Mercenary with FLK Orb 1531 | -10/Exiles | Lost 7 allies 1682 | -10/Exiles | Build established: Scavenger-Mutant 1972 | -10/Exiles | Entered Mines 2056 | -9/Mines | Reached level 7 2085 | -9/Mines | Identified exit to Materials 2093 | -9/Mines | Learned location of Storage (-8) 2122 | -9/Mines | Met a Derelict testing a Signal Generator 2124 | -9/Mines | Found Signal Generator 2145 | -9/Mines | Build established: Scavenger-Gunner 2151 | -9/Mines | Found a damaged Exp. Sensor Array with a note attached 2153 | -9/Mines | Found Prototype Device 2153 | -9/Mines | Identified Exp. Sensor Array 2259 | -9/Mines | Entered Materials 2260 | -8/Materials | Identified exit to Storage 2261 | -8/Materials | Reached level 8 2372 | -8/Materials | Discovered new exit (range 7) 2376 | -8/Materials | Entered Factory 2378 | -7/Factory | Reached level 9 2390 | -7/Factory | Upgraded with Power slot (x1) 2390 | -7/Factory | Upgraded with Propulsion slot (x1) 2390 | -7/Factory | Upgraded with Utility slot (x1) 2540 | -7/Factory | Identified exit to Lower Caves 2626 | -7/Factory | Entered Lower Caves 2628 | -7/Lower Caves | Attracted the attention of an 0b10 checkpoint 2668 | -7/Lower Caves | Reached level 10 2671 | -7/Lower Caves | Upgraded with Weapon slot (x1) 2684 | -7/Lower Caves | Spotted B-75 Beast 2743 | -7/Lower Caves | Encountered a Warlord checkpoint 2776 | -7/Lower Caves | Learned 6 Upper Caves zone layouts 2814 | -7/Lower Caves | Build established: Scavenger-Tank 2880 | -7/Lower Caves | Identified exit to Lower Caves 3030 | -7/Lower Caves | Entered another Lower Caves area 3228 | -7/Lower Caves | Spotted B-75 Beast 3397 | -7/Lower Caves | Discovered new exit (range 5) 3405 | -7/Lower Caves | Entered Factory 3407 | -6/Factory | Reached level 11 3408 | -6/Factory | Upgraded with Utility slot (x1) 3534 | -6/Factory | Noticed a derelict Sapper rigging charges 3547 | -6/Factory | Spotted B-75 Beast 3719 | -6/Factory | Build established: Scavenger-Gunner 3923 | -6/Factory | Discovered new exit (range 17) 3957 | -6/Factory | Entered another Factory area 3958 | -5/Factory | Identified exit to Extension 3959 | -5/Factory | Reached level 12 4130 | -5/Factory | Build established: Gunner 4242 | -5/Factory | Reached level 13 4641 | -5/Factory | Core integrity fell below 50% 4669 | -5/Factory | Entered Extension 4671 | -5/Extension | Reached level 14 4711 | -5/Extension | Rescued a captive Derelict 4793 | -5/Extension | Disrupted transfer network 4805 | -5/Extension | Destroyed 7 combat bots 4862 | -5/Extension | Rescued A7 5005 | -5/Extension | Reached level 15 5037 | -5/Extension | Lost 3 allies 5163 | -5/Extension | Reached level 16 5166 | -5/Extension | Upgraded with Weapon slot (x1) 5186 | -5/Extension | Spotted B-75 Beast 5191 | -5/Extension | Spotted B-75 Beast 5197 | -5/Extension | Extracted ID and sensor layout for unrecognized location from A7's data core 5210 | -5/Extension | Core integrity fell below 20% 5219 | -5/Extension | Lost 8 allies 5489 | -5/Extension | Rescued a captive Derelict 5496 | -5/Extension | Build established: Scavenger-Gunner 5681 | -5/Extension | Destroyed by G-50 Soldier with Heavy Laser Last Messages --------------- 05656_ Field strength at 65. 05657_ Field strength at 58. 05658_ Field strength at 51. 05659_ Field strength at 44. 05660_ Field strength at 37. 05661_ Field strength at 30. 05662_ Field strength at 23. 05663_ Field strength at 16. 05664_ Field strength at 9. 05665_ Field strength at 2. 05666_ Stasis field depleted. 05671_ G-50 Soldier springs to life. 05674_ Destroyed Lgt. Angular Momentum Engine. 05677_ G-50 Soldier destroyed. 05677_ Slug penetrates Earth. 05680_ Acquired 36 matter. 05681_ Slug penetrates G-50 Soldier. 05681_ Destroyed Carbon-fiber Leg. 05681_ Critical hit (Burn: +37). [Achievement: This Is Interesting...] Map ----- +----------------------------------------------------+ | | | | | | | | | | | | | | | | | | | | | | | | | | | | | | | ?????????????????????????????????????????????????? | | ?????????????????????????????????????????????????? | | ???????????????????????????????##????????????????? | | ##???????????????????????#????# ?????????????????? | | #??????????????????????? ???# ??????????????????? | | #???????????############;### #??????????????????? | | #???????????# + ;#???????????????????? | | [#???????????#^ # b= #????????????????????? | | #???????????# # [lg #????????????????????? | | #???????????# + h== #????????????????????? | | +#????????#### # @ #????????????????????? | | # ??????# # /R ???????????????? | | #????????# ! ########### #?????????????? | | #????????# #????????????????Y??????????? | | #????????# "Y" #######?????????????????????? | | #????????# """ ??????????????????? | | #????????# ??????????????????? | | #????????# ??????????????????? | | #????????# ##################???????????????????? | | #????????#w#????????????????????????????????????? | | !#????????# #????????????????????????????????????? | | =#????????# #????????????????????????????????????? | | %##???????# #????###?????????????????????????????? | | ##???????# #?? ##????????????????????????????? | | ##???????# # """ "#????????????????????????????? | | %#????????# +[ "Y" T#????????????????????????????? | | %#????????#%# " " "#????????????????????????????? | | %#????????# #?? ##????????????????????????????? | | %#????????# #????! #?????????????????????????????? | | %#####????# #??????#?????????????????????????????? | | %#|######?#%#????????????????????????????????????? | | %##" #" "## ###??????????????????????????????????? | | !%*!% " " #??????????????????????????????????? | | % #??????????????????????????????????? | | #??????????????????????????????????? | +----------------------------------------------------+ Best States ------------- Heat Dissipation 86 Energy Generation 43 Energy Capacity 630 Matter Stores 500 Matter Capacity 500 Sight Range 18 Robot Scan Range 20 Terrain Scan Density 10 ECM Strength 2 Armor Coverage 225 Resistance: KI 20 Resistance: TH 20 Resistance: EX 20 Weapon Cycling 15 Evasion (%) 56 Targeting Accuracy 10 Target Analysis 6 Particle Charging 20 Offensive Hacking 10 Defensive Hacking 14 Item Schematics ----------------- None Robot Schematics ------------------ None Fabricated ------------ Nothing Alien Tech Used ----------------- None Achievements -------------- Oops Prison Break This Is Interesting... Challenges ------------ None RPGLIKE | -11 -10 -10 -10 -9 -8 -7 -7 -7 -6 -5 -5 --------- Run | Yrd Mat Min Exi Min Mat Fac Low Low Fac Fac Ext Levels Raised 15 | . . . 5 1 1 1 1 . 1 2 3 XP Earned 26123 | 3000 400 850 7054 1300 1500 1730 1200 500 1950 2400 4239 XP Spent 25435 | 3000 . . 7495 1470 . 2700 1100 . 2200 1515 5955 Upgrades 63 | 6 . . 24 7 . 3 1 . 2 6 14 Power Slot 1 | . . . . . . 1 . . . . . Propulsion Slot 3 | 1 . . 1 . . 1 . . . . . Utility Slot 4 | 1 . . 1 . . 1 . . 1 . . Weapon Slot 4 | 1 . . 1 . . . 1 . . . 1 Core Integrity 12 | . . . 5 3 . . . . . 1 3 Heat Dissipation 5 | . . . 2 1 . . . . . 1 1 Energy Generation 2 | . . . 1 . . . . . . 1 . Energy Storage 2 | . . . 1 . . . . . . 1 . Matter Storage 4 | . . . . 2 . . . . . 2 . Inventory Capacity 4 | 3 . . 1 . . . . . . . . Sight Range 2 | . . . 2 . . . . . . . . Ranged Accuracy 5 | . . . 3 1 . . . . 1 . . KI Resistance % 4 | . . . 2 . . . . . . . 2 TH Resistance % 4 | . . . 2 . . . . . . . 2 EX Resistance % 4 | . . . 2 . . . . . . . 2 KI Damage % 1 | . . . . . . . . . . . 1 TH Damage % 2 | . . . . . . . . . . . 2 Protomatter Created 778 | . 46 20 . 96 . . 102 . 87 215 212 Integrity Restored 2247 | . 138 60 204 258 . . 178 . 257 483 669 Core 2119 | . 138 60 204 179 . . 178 . 223 468 669 Parts 128 | . . . . 79 . . . . 34 15 . Protomatter Decayed 549 | . . . 347 . . . 50 . . 53 99 Game ------ Seed GlidesysDeliveryNukerbomber Manual? 0 Play Time 01:24:56 Cumulative 23.6 hours Start 2024.03.04 @ 09:38:48 End 2024.03.04 @ 21:44:38 Sessions 7 Manual Loads 0 Difficulty Rogue Special Mode Winter2019/RPGLIKE Game No. 35 Rogue 24 Adventurer 11 Explorer 0 Win Type - Total 0 Types 0/0/0/0/0/0/0/0/0 Lore% 31 Gallery% 30 Achievement% 35 Wizard Run 0 Options --------- Layout 0 ASCII 0 Keyboard 0 Movement Mouse Keybinds 0 Fullscreen 2 Font 18/SmallcapsGlow Map View 76x50 Zoom Use 0% Tactical HUD 1 Map Filters NONE Filters NONE Steam 1 RUN: c7b650db-ad90-4a9f-baf4-ffe5c053dd27